bitfinex/quotes_ETHUSD_20250622
["timestamp","ask_amount","ask_price","bid_price","bid_amount"]
[1750555201335,13.80416762,2286.1,2286.0,0.32573296]
[1750555201519,9.817,2286.1,2286.0,4.70018615]
[1750555202021,9.817,2286.2,2286.0,0.32573296]
[1750555202214,9.817,2286.2,2286.1,4.37426184]
[1750555202215,2.158,2286.2,2286.1,4.37426184]
[1750555203453,2.158,2286.2,2286.0,0.32573296]
[1750555203614,10.505,2286.5,2286.0,0.32573296]
[1750555203950,9.87067575,2286.4,2286.0,0.32573296]
[1750555204135,40.0,2286.1,2286.0,0.32573296]
[1750555204322,37.658,2286.1,2286.0,0.32573296]
[1750555206429,7.658,2286.1,2286.0,0.32573296]
[1750555206676,12.67445812,2286.5,2286.0,0.32573296]
[1750555206961,30.0,2286.3,2286.0,0.32573296]
[1750555207162,0.05467984,2286.2,2286.0,0.32573296]
[1750555207363,30.8283,2286.1,2286.0,0.32573296]
[1750555210369,45.75256184,2286.1,2286.0,0.32573296]
[1750555212485,41.3783,2286.1,2286.0,0.32573296]
[1750555212681,50.6433,2286.1,2286.0,0.32573296]
[1750555212864,56.0584015,2286.1,2286.0,0.32573296]
[1750555213540,51.13213966,2286.1,2286.0,0.32573296]
[1750555213874,51.68213966,2286.1,2286.0,0.32573296]
[1750555214549,56.0564015,2286.1,2286.0,0.32573296]
[1750555215464,51.13213966,2286.1,2286.0,0.32573296]
[1750555215860,41.31913966,2286.1,2286.0,0.32573296]
[1750555216062,49.813,2286.1,2286.0,0.32573296]
[1750555218381,32.156,2286.1,2286.0,0.32573296]
[1750555218586,39.812,2286.1,2286.0,0.32573296]
[1750555219083,39.812,2286.1,2286.0,4.70018615]
[1750555219282,39.812,2286.1,2286.0,0.32573296]
[1750555220188,39.812,2286.1,2286.0,4.70018615]
[1750555220482,39.812,2286.1,2286.0,5.6076687]
[1750555220648,10.505,2286.5,2286.4,4.37368789]
[1750555221499,0.7715,2287.1,2286.5,4.37349661]
[1750555221708,2.156,2287.0,2286.9,4.37273164]
[1750555221846,2.156,2287.4,2287.3,4.37196694]
[1750555222050,22.421,2287.4,2287.2,4.37208212]
[1750555222281,22.421,2287.4,2286.9,0.87456416]
[1750555222282,14.766,2287.4,2286.9,0.87456416]
[1750555222449,12.421,2287.4,2287.3,4.37196694]
[1750555222957,20.32,2287.5,2287.4,4.37177581]
[1750555223158,20.32,2287.5,2287.3,4.37190275]
[1750555223349,20.32,2287.5,2287.2,0.7715]
[1750555223554,20.32,2287.5,2287.4,4.37177581]
[1750555224178,20.32,2287.5,2287.3,4.37188983]
[1750555224670,12.665,2287.5,2287.3,4.37188983]
[1750555224847,7.653,2287.4,2287.2,0.7715]
[1750555225048,7.70764708,2287.4,2287.1,4.37221018]
[1750555225272,7.653,2287.4,2287.3,4.37196694]
[1750555225690,7.70764828,2287.4,2287.2,4.37211779]
[1750555225986,7.70764828,2287.4,2286.9,5.14419724]
[1750555226160,8.47914828,2287.4,2287.0,4.3724237]
[1750555226357,10.53891483,2287.4,2286.9,4.37272854]
[1750555226688,10.53891483,2287.4,2287.0,4.37248656]
[1750555226989,7.653,2287.4,2286.7,0.7715]
[1750555227204,7.653,2287.4,2287.3,4.37196694]
[1750555227400,37.70764925,2287.4,2287.3,3.0]
[1750555227599,37.653,2287.4,2287.3,3.0]
[1750555227959,7.653,2287.4,2287.3,3.0]
[1750555228163,7.70765031,2287.4,2287.3,3.0]
[1750555228862,7.653,2287.4,2287.3,3.0]
[1750555229062,7.653,2287.4,2287.3,7.37196694]
[1750555229264,7.70764708,2287.4,2287.3,3.0]
[1750555229903,37.70764708,2287.4,2287.3,3.0]
[1750555230201,51.05786471,2287.4,2286.4,0.8122]
[1750555230361,0.8176,2286.9,2286.4,0.8122]
[1750555230563,9.805,2286.8,2286.5,4.37349661]
[1750555230764,2.155,2286.7,2286.6,4.37330534]
[1750555231070,0.8176,2287.3,2286.7,4.37294571]
[1750555231270,30.0,2287.1,2286.7,4.37294571]
[1750555231468,30.0,2286.9,2286.7,4.37294571]
[1750555231697,7.649,2286.8,2286.7,4.37294571]
[1750555231881,7.649,2286.8,2286.6,4.37322669]
[1750555232061,2.155,2286.7,2286.6,4.37330534]
[1750555233076,2.155,2286.7,2286.5,4.37333993]
[1750555233279,2.155,2286.7,2286.5,4.3734204]
[1750555233505,2.20966558,2286.7,2286.4,5.18581329]
[1750555233822,10.0,2286.5,2286.1,4.37411602]
[1750555233970,7.70267463,2286.4,2286.1,4.37411602]
[1750555234368,7.70267463,2286.4,2286.0,5.51236504]
[1750555234803,7.648,2286.4,2286.2,4.37394583]
[1750555235008,7.648,2286.4,2286.3,4.37387919]
[1750555235379,7.648,2286.4,2286.0,1.13793296]
[1750555235380,7.648,2286.4,2286.2,4.37401208]
[1750555235587,7.70267464,2286.4,2286.1,4.37420026]
[1750555235818,7.648,2286.4,2286.2,4.3739202]
[1750555236002,7.648,2286.4,2286.3,4.37387919]
[1750555236901,7.648,2286.4,2286.2,7.72900909]
[1750555236902,30.0,2286.3,2286.2,7.72900909]
[1750555237064,7.648,2286.4,2286.2,7.72900909]
[1750555237469,30.0,2286.3,2286.2,7.72900909]
[1750555238002,7.648,2286.4,2286.3,4.37387919]
[1750555238208,30.0,2286.3,2286.0,0.32573296]
[1750555238384,9.85667787,2286.2,2286.0,0.32573296]
[1750555238701,9.802,2286.2,2286.0,0.32573296]
[1750555238909,11.3009367,2286.2,2286.0,0.32573296]
[1750555239269,58.68103432,2286.1,2286.0,0.32573296]
[1750555239892,48.977,2286.1,2286.0,0.32573296]
[1750555240100,53.35126184,2286.1,2286.0,0.32573296]
[1750555240691,48.977,2286.1,2286.0,0.32573296]
[1750555241019,50.05780973,2286.1,2286.0,0.32573296]
[1750555241404,54.43207157,2286.1,2286.0,0.32573296]
[1750555241598,50.05780973,2286.1,2286.0,0.32573296]
[1750555242000,54.98207157,2286.1,2286.0,0.32573296]
[1750555242238,67.95884405,2286.1,2286.0,0.32573296]
[1750555244993,0.55,2285.7,2284.9,0.2256887]
[1750555245300,30.0,2285.2,2284.9,0.2256887]
[1750555245500,9.85170801,2285.1,2284.9,0.2256887]
[1750555245706,7.647,2285.0,2284.9,4.60217883]
[1750555246092,7.647,2285.0,2284.9,0.2256887]
[1750555246506,7.647,2285.0,2284.9,4.60224784]
[1750555246711,7.70170924,2285.0,2284.9,0.2256887]
[1750555247126,50.03798016,2285.0,2284.9,0.2256887]
[1750555247336,54.35963853,2285.0,2284.9,0.05622206]
[1750555247497,0.8011,2284.1,2281.6,0.22878071]
[1750555247703,42.97677248,2282.1,2281.7,0.36585993]
[1750555247903,30.0,2281.9,2281.7,0.36585993]
[1750555248103,7.677,2281.8,2281.7,0.36585993]
[1750555248365,10.51,2282.1,2281.7,0.36585993]
[1750555248496,2.15,2282.1,2282.0,4.38212094]
[1750555248703,1.24613374,2282.8,2282.1,0.7935]
[1750555248933,30.0,2284.7,2283.5,0.7935]
[1750555249144,0.98517092,2285.0,2284.5,4.37732545]
[1750555249309,0.21310117,2285.3,2284.6,2.66541973]
[1750555249640,0.08129987,2285.2,2284.6,0.04376712]
[1750555249842,0.08129987,2285.2,2284.6,0.56865638]
[1750555250025,0.08129987,2285.2,2285.1,4.37617609]
[1750555250467,0.08129987,2285.2,2285.1,5.20397609]
[1750555250663,10.043,2285.8,2285.1,5.20397609]
[1750555250947,30.0,2285.5,2284.9,4.37651979]
[1750555251109,3.03279219,2285.4,2284.9,4.37651979]
[1750555251306,0.03279219,2285.4,2284.9,0.04376336]
[1750555251634,10.043,2285.4,2285.0,4.37621706]
[1750555251836,10.043,2285.4,2285.1,4.37617191]
[1750555252318,12.97677248,2286.0,2284.8,0.8278]
[1750555252319,30.0,2285.6,2285.0,0.0437603]
[1750555252568,30.0,2285.6,2284.8,0.8278]
[1750555252769,30.0,2286.1,2284.9,0.04375724]
[1750555253043,10.037,2286.1,2285.8,4.37479726]
[1750555253611,10.51,2286.4,2285.9,0.043745]
[1750555253807,30.0,2286.5,2285.6,4.37521876]
[1750555254054,30.0,2286.5,2286.3,4.37370688]
[1750555254263,40.038,2286.8,2286.5,4.37341522]
[1750555254440,34.08214,2286.7,2286.5,4.37341522]
[1750555254620,4.08214,2286.7,2286.6,4.37330534]
[1750555254820,30.0,2287.1,2286.2,4.37397108]
[1750555255046,30.0,2287.1,2286.8,4.37291835]
[1750555255351,10.036,2287.2,2286.8,4.37291835]
[1750555255352,30.0,2286.9,2286.8,4.37291835]
[1750555255513,30.0,2287.1,2287.0,4.37254044]
[1750555255823,4.2754,2287.1,2287.0,4.37254044]
[1750555256022,2.243,2287.2,2287.1,4.37234926]
[1750555256220,12.243,2287.2,2287.1,4.37234926]
[1750555256614,2.243,2287.2,2286.9,4.37270763]
[1750555256810,12.243,2287.2,2286.9,4.37270763]
[1750555257009,12.243,2287.2,2286.7,4.37295784]
[1750555257243,3.0543,2287.1,2287.0,4.37254044]
[1750555257444,3.0543,2287.1,2286.9,4.37272549]
[1750555257662,3.0543,2287.1,2286.3,4.37387919]
[1750555257810,2.243,2287.2,2286.3,0.8086]
[1750555258010,2.27579219,2287.2,2286.3,0.8086]
[1750555258325,2.27579219,2287.2,2287.0,4.37244196]
[1750555258326,2.243,2287.2,2287.0,4.37244196]
[1750555258854,2.243,2287.2,2286.4,4.37359406]
[1750555259027,4.296,2287.2,2287.1,4.37234926]
[1750555259952,4.296,2287.2,2287.0,4.37247787]
[1750555260549,30.0,2287.1,2286.3,0.8086]
[1750555260748,3.46567141,2287.0,2286.6,4.37329991]
[1750555261128,0.03279219,2287.0,2286.6,4.37329991]
[1750555261451,0.03279219,2287.0,2286.0,2.68187888]
[1750555261452,10.55,2286.8,2285.9,0.7902]
[1750555261636,34.37276847,2286.9,2285.6,0.7902]
[1750555261637,10.0,2286.4,2285.6,0.7902]
[1750555261949,30.0,2286.0,2285.4,4.37554204]
[1750555262122,10.0,2285.8,2285.5,4.3753617]
[1750555262451,30.0,2285.6,2284.9,0.31145572]
[1750555262617,40.0,2285.4,2284.8,4.37673022]
[1750555262813,10.0,2285.1,2284.6,0.7902]
[1750555263015,40.0,2284.9,2284.2,0.7902]
[1750555263215,40.0,2284.7,2284.4,4.37748016]
[1750555263415,30.03279219,2284.6,2284.3,0.3654435]
[1750555263618,0.03279219,2284.5,2284.4,0.36542751]
[1750555264120,30.58279219,2284.5,2284.4,0.36542751]
[1750555264345,44.92732545,2284.5,2284.4,0.36542751]
[1750555265228,30.0,2284.5,2284.4,0.36542751]
[1750555265429,10.014,2284.5,2284.4,0.36542751]
[1750555265633,10.014,2284.5,2283.0,0.7986]
[1750555265634,30.0,2283.9,2283.0,0.7986]
[1750555265954,4.3779626,2284.2,2282.3,4.38145057]
[1750555265955,40.0,2283.5,2282.3,4.38145057]
[1750555266139,30.0,2283.3,2282.9,4.38023038]
[1750555266391,10.03,2283.2,2282.2,0.7986]
[1750555266564,2.243,2283.4,2282.8,0.43939247]
[1750555266871,2.243,2283.4,2283.3,4.37962597]
[1750555267074,2.243,2283.4,2283.2,4.37976384]
[1750555267587,2.243,2283.4,2283.3,4.37962597]
[1750555267970,10.51,2283.8,2283.7,4.37885886]
[1750555268283,2.243,2284.0,2283.9,4.37847541]
[1750555268484,2.243,2284.0,2283.9,5.69207634]
[1750555268787,2.244,2284.4,2284.3,4.3777087]
[1750555269173,2.244,2284.4,2283.9,4.37847541]
[1750555269351,2.244,2284.4,2283.8,0.7986]
[1750555269352,10.039,2284.4,2283.8,0.7986]
[1750555269549,2.244,2284.4,2284.3,4.3777087]
[1750555269764,2.244,2284.4,2284.3,5.2532701]
[1750555270461,2.244,2284.4,2284.1,4.37790533]
[1750555270462,30.03279219,2284.7,2284.1,4.37790326]
[1750555270784,30.0,2284.7,2284.3,4.37769477]
[1750555271191,20.548,2284.8,2284.2,0.04377309]
[1750555271387,4.21411715,2285.9,2284.2,0.04377309]
[1750555271571,30.0,2285.2,2284.7,4.37679247]
[1750555271888,4.04057141,2285.1,2284.5,5.17860999]
[1750555272088,4.04057141,2285.1,2284.6,4.37713385]
[1750555272454,7.804,2285.0,2284.7,4.37692919]
[1750555272670,7.83679219,2285.0,2284.6,4.37709286]
[1750555272869,7.804,2285.0,2284.4,4.3774539]
[1750555273093,7.804,2285.0,2284.5,0.4858884]
[1750555273299,7.797,2285.1,2285.0,4.3763219]
[1750555273462,10.041,2285.1,2285.0,4.3763219]
[1750555273653,2.244,2285.2,2285.1,4.37617609]
[1750555273992,2.244,2285.2,2285.0,4.37636761]
[1750555273993,40.0,2285.5,2285.2,4.37583026]
[1750555274173,30.0,2285.5,2285.1,4.3761606]
[1750555274374,7.798,2285.6,2285.0,0.8013]
[1750555274676,30.0,2285.4,2285.0,4.37630095]
[1750555274876,4.00707922,2285.4,2285.1,4.37604724]
[1750555275091,40.0,2285.4,2285.0,4.37624929]
[1750555275386,30.0,2285.4,2285.1,4.37611084]
[1750555275964,7.791,2285.4,2285.0,0.04375629]
[1750555276295,10.0,2285.6,2285.5,4.37540954]
[1750555276496,2.244,2285.5,2285.2,4.37598076]
[1750555276812,2.244,2285.5,2285.4,4.37560164]
[1750555277287,2.244,2285.5,2285.3,4.37572636]
[1750555277494,40.0,2285.2,2284.2,0.7895]
[1750555277679,0.7971,2285.3,2284.4,4.37739444]
[1750555277680,30.0,2285.0,2284.4,4.37739444]
[1750555277881,2.27679219,2284.9,2284.5,4.37717117]
[1750555278085,7.843,2284.8,2284.5,4.37717117]
[1750555278311,2.244,2284.8,2284.7,4.37694226]
[1750555278605,2.244,2284.8,2284.6,4.37708182]
[1750555278806,2.244,2284.8,2284.2,0.7895]
[1750555278958,2.244,2284.8,2284.6,4.3769928]
[1750555279161,2.244,2284.8,2284.5,4.37726736]
[1750555279875,0.7971,2285.3,2284.7,4.37694226]
[1750555280078,2.267,2285.2,2285.1,4.37600833]
[1750555280501,7.835,2285.6,2285.5,4.37535337]
[1750555280502,2.267,2285.6,2285.5,4.37535337]
[1750555281099,10.513,2285.7,2285.6,4.37521876]
[1750555282162,2.267,2285.9,2285.8,4.37483594]
[1750555282666,2.267,2286.4,2285.9,4.37464456]
[1750555282883,10.513,2286.6,2286.0,0.0437351]
[1750555283084,10.513,2286.6,2286.5,4.37349661]
[1750555283284,10.513,2286.6,2286.4,4.37363129]
[1750555283682,19.621,2286.6,2286.0,4.37439225]
[1750555283888,0.03279219,2286.5,2286.2,4.37403153]
[1750555284089,19.621,2286.6,2286.2,4.37391669]
[1750555284299,30.0,2286.4,2285.9,4.3745044]
[1750555284486,30.0,2286.4,2286.0,4.37445222]
[1750555284685,34.39434887,2286.4,2285.7,0.7587]
[1750555284869,30.7713,2286.2,2285.2,0.7827]
[1750555285179,12.267,2286.1,2285.5,4.37537118]
[1750555285523,7.89179219,2286.0,2285.3,4.37562041]
[1750555285802,12.26631499,2286.0,2285.3,4.37575576]
[1750555285984,1.4533315,2285.9,2285.4,4.37558014]
[1750555286187,2.267,2285.8,2285.5,3.35493858]
[1750555286907,2.29979219,2285.8,2285.5,3.35493858]
[1750555287073,2.29979219,2285.8,2285.4,3.35493858]
[1750555287269,40.0,2285.5,2284.9,4.37644431]
[1750555287502,7.88179219,2285.4,2284.9,4.37643999]
[1750555287703,2.267,2285.3,2284.9,4.37643999]
[1750555288417,2.267,2285.3,2284.9,4.37651188]
[1750555288611,0.7713,2285.6,2284.7,3.35493858]
[1750555288811,2.267,2285.7,2285.1,5.15887609]
[1750555288981,2.267,2285.7,2285.1,0.7827]
[1750555289619,2.267,2285.7,2285.4,4.37545552]
[1750555289823,12.267,2285.7,2285.2,4.37596546]
[1750555289972,2.267,2285.7,2285.4,4.37546665]
[1750555290176,12.267,2285.7,2285.2,4.37596546]
[1750555290402,2.267,2285.7,2285.4,4.37558023]
[1750555290684,12.267,2285.7,2285.3,4.37579311]
[1750555290878,2.267,2285.7,2285.3,4.37579311]
[1750555291090,13.2784,2285.7,2285.3,4.37579311]
[1750555291286,3.2784,2285.7,2285.4,4.37560088]
[1750555291491,13.2784,2285.7,2285.4,4.37560088]
[1750555291691,3.2784,2285.7,2285.4,4.37560088]
[1750555291995,13.2784,2285.7,2285.4,4.37560088]
[1750555292205,3.2784,2285.7,2285.4,7.73053946]
[1750555292534,3.2784,2285.7,2285.5,3.35493858]
[1750555292535,2.267,2285.7,2285.5,3.35493858]
[1750555292757,10.513,2286.6,2285.4,3.35493858]
[1750555292953,2.267,2286.2,2286.1,4.37426184]
[1750555293092,12.78,2286.6,2286.5,4.37349661]
[1750555293293,12.78,2286.6,2286.3,4.37383523]
[1750555293522,12.78,2286.6,2286.4,4.373649]
[1750555293724,12.78,2286.6,2286.5,4.37349661]
[1750555293985,10.513,2286.6,2286.5,4.37349661]
[1750555294803,2.267,2287.1,2286.6,4.37330534]
[1750555295003,0.36311394,2287.0,2286.4,0.8011]
[1750555295230,0.03279219,2286.9,2286.1,0.8011]
[1750555295533,0.36172988,2286.8,2286.5,4.37348806]
[1750555296229,0.36172988,2286.8,2286.6,4.37329386]
[1750555296428,1.18090287,2286.8,2286.1,0.8011]
[1750555296593,0.36172988,2286.8,2286.7,4.37311409]
[1750555298338,0.36172988,2286.8,2286.5,0.8011]
[1750555298537,0.36172988,2286.8,2286.7,4.37311409]
[1750555298733,0.36172988,2286.8,2286.5,4.37337528]
[1750555299116,1.17922988,2286.8,2286.1,5.17531509]
[1750555299316,0.03279219,2286.7,2286.3,4.37376187]
[1750555299508,2.266,2286.6,2286.3,4.37376187]
[1750555300007,2.266,2286.6,2286.1,0.8011]
[1750555300207,2.266,2286.6,2286.5,4.37349661]
[1750555300403,2.266,2286.6,2286.4,4.37363214]
[1750555300711,2.266,2286.6,2286.4,4.37367692]
[1750555301107,2.29879219,2286.6,2285.8,4.55405226]
[1750555301300,2.266,2286.6,2286.5,4.37349661]
[1750555302932,2.266,2286.6,2286.4,4.37364263]
[1750555303145,2.266,2286.6,2286.4,4.37353811]
[1750555303347,2.266,2286.6,2286.3,4.37375417]
[1750555303502,2.266,2286.6,2286.3,4.3738042]
[1750555304329,2.266,2286.6,2286.4,4.37368438]
[1750555304951,2.266,2286.6,2286.5,4.37349661]
[1750555305157,0.36311394,2286.7,2286.6,4.37330534]
[1750555306457,2.266,2287.3,2287.1,4.37223367]
[1750555306756,2.266,2287.3,2287.2,4.37215809]
[1750555307537,2.266,2287.3,2287.1,4.37229262]
[1750555307874,2.266,2287.3,2287.2,4.37215809]
[1750555308376,2.266,2287.3,2287.2,4.4158735]
[1750555308511,2.266,2287.3,2287.2,4.37215809]
[1750555309409,2.266,2287.3,2286.7,0.7813]
[1750555309710,30.0,2287.1,2286.7,4.37299219]
[1750555309941,30.0,2287.2,2286.7,4.37299219]
[1750555310150,3.26267141,2287.1,2286.6,4.37311816]
[1750555310346,3.26267141,2287.1,2286.7,4.37311143]
[1750555310347,7.781,2287.0,2286.7,4.37311143]
[1750555310651,7.781,2287.0,2286.7,4.37297873]
[1750555311351,7.781,2287.0,2286.8,4.37290274]
[1750555311536,7.781,2287.0,2286.9,4.37273164]
[1750555312550,0.7613,2287.4,2287.1,4.37226375]
[1750555312716,2.229,2287.3,2287.2,4.37215809]
[1750555312916,10.511,2287.5,2286.7,4.3729927]
[1750555313150,2.229,2287.3,2287.2,4.37215809]
[1750555314146,2.229,2287.3,2287.1,4.3722739]
[1750555314347,2.229,2287.3,2286.5,0.7889]
[1750555314549,2.229,2287.3,2286.6,4.37330534]
[1750555314550,0.7909,2287.2,2286.6,4.37330534]
[1750555314754,2.229,2287.3,2287.1,4.3721669]
[1750555314935,2.229,2287.3,2287.0,4.37248997]
[1750555315136,2.229,2287.3,2287.1,4.37233063]
[1750555315818,2.229,2287.3,2286.9,4.37272303]
[1750555316055,2.229,2287.3,2287.0,4.37246787]
[1750555316258,0.7909,2287.1,2285.8,0.43931368]
[1750555316473,0.55,2287.2,2285.0,1.23250237]
[1750555316474,30.0,2286.4,2285.0,1.23250237]
[1750555316625,30.0,2286.2,2285.7,4.37485879]
[1750555316822,10.119,2286.3,2285.2,0.7889]
[1750555317048,30.7909,2286.1,2285.2,0.7889]
[1750555317256,0.03279219,2286.0,2285.6,4.37520439]
[1750555317463,0.03279219,2286.0,2285.5,4.37538241]
[1750555317741,0.03279219,2286.0,2285.2,0.7889]
[1750555318054,0.03279219,2286.0,2285.7,4.37487357]
[1750555318246,0.03279219,2286.0,2285.2,0.7889]
[1750555318446,0.7909,2286.1,2285.6,4.37504965]
[1750555318659,0.82369219,2286.1,2285.7,4.37485977]
[1750555319169,0.82369219,2286.1,2285.8,4.37481683]
[1750555319742,0.82369219,2286.1,2285.7,4.37496982]
[1750555320060,0.82369219,2286.1,2285.2,0.7889]
[1750555320263,30.0,2286.2,2285.9,4.37455174]
[1750555320577,0.03279219,2286.1,2285.2,0.7889]
[1750555320780,0.03279219,2286.1,2285.6,4.37509426]
[1750555320953,0.03279219,2286.1,2285.1,4.37605141]
[1750555320954,44.37488199,2285.8,2285.1,4.3760456]
[1750555321146,0.8226,2285.4,2284.4,0.8117]
[1750555321345,10.0,2285.1,2284.4,5.18917283]
[1750555321586,2.26279219,2285.0,2284.0,0.8117]
[1750555321878,7.898,2284.9,2284.0,0.8117]
[1750555322173,10.85539219,2284.8,2283.7,4.3787858]
[1750555322381,13.86625895,2284.8,2284.5,4.37719181]
[1750555322689,13.86625895,2284.8,2284.4,4.37751327]
[1750555322873,13.86625895,2284.8,2284.2,4.37789193]
[1750555322874,13.86625895,2284.8,2284.0,4.37818198]
[1750555323076,13.86625895,2284.8,2284.3,4.37767578]
[1750555323280,13.86625895,2284.8,2284.1,4.37806886]
[1750555323499,0.03279219,2284.7,2284.5,4.37719313]
[1750555323774,10.8226,2284.8,2284.4,4.37751135]
[1750555323974,0.03279219,2284.7,2284.2,4.37790035]
[1750555324177,0.46504095,2284.7,2284.1,4.37797251]
[1750555324346,10.0,2284.4,2283.4,4.37929992]
[1750555324546,40.0,2284.5,2283.8,4.37853286]
[1750555324547,40.0,2284.1,2283.8,4.37853286]
[1750555324751,2.23,2284.3,2283.9,4.4222607]
[1750555324940,10.128,2284.3,2284.2,4.37790035]
[1750555325368,10.128,2284.3,2284.1,4.37805935]
[1750555325676,10.128,2284.3,2284.0,4.37823934]
[1750555325860,0.03279219,2284.2,2283.9,4.37844623]
[1750555326459,0.76,2284.1,2283.9,4.37844623]
[1750555326658,7.94579219,2284.0,2283.9,4.37844623]
[1750555327376,7.913,2284.0,2283.9,4.37844623]
[1750555327878,0.76,2284.6,2283.9,4.37844623]
[1750555328085,20.133,2284.5,2284.4,4.37751707]
[1750555328696,10.133,2284.5,2284.4,4.37751707]
[1750555329151,2.231,2284.6,2284.5,4.37732545]
[1750555329353,0.03279219,2284.9,2284.8,4.3767507]
[1750555329549,8.34468794,2285.0,2284.9,4.37655914]
[1750555329761,10.57568794,2285.0,2284.9,4.37655914]
[1750555330258,2.231,2285.2,2285.1,4.37605192]
[1750555332390,4.32709219,2285.2,2284.6,0.8087]
[1750555332597,2.26379219,2285.2,2285.0,4.37624872]
[1750555332806,2.26379219,2285.2,2285.1,4.37617609]
[1750555333096,2.26379219,2285.2,2285.0,4.3763091]
[1750555333410,0.7597,2285.0,2284.2,0.8087]
[1750555333559,30.0,2284.8,2284.6,4.37709276]
[1750555333758,10.14179219,2284.7,2284.6,4.37709276]
[1750555333968,10.109,2284.7,2284.6,4.37709276]
[1750555336167,2.231,2284.7,2284.6,4.37709276]
[1750555336454,2.231,2284.7,2284.6,8.6074722]
[1750555336660,10.505,2285.3,2285.2,4.37598459]
[1750555336855,20.599,2285.3,2285.2,4.37598459]
[1750555337367,30.0,2285.2,2285.1,4.37617344]
[1750555337564,20.599,2285.3,2285.2,4.37598459]
[1750555337962,20.599,2285.3,2285.1,4.37610788]
[1750555338564,0.03279219,2285.2,2285.1,4.37610788]
[1750555338763,0.03279219,2285.2,2285.0,3.35493858]
[1750555338985,7.856,2285.1,2285.0,7.73130619]
[1750555340308,7.806,2285.1,2285.0,7.73130619]
[1750555340595,12.736,2285.3,2285.2,4.37598459]
[1750555340596,20.583,2285.3,2285.2,4.37598459]
[1750555341200,12.777,2285.3,2285.2,4.37598459]
[1750555342794,10.505,2285.3,2285.2,4.37598459]
[1750555343544,10.505,2285.3,2284.8,7.73163564]
[1750555343545,12.5665,2285.3,2284.8,7.73163564]
[1750555343667,8.63599219,2285.2,2284.9,4.37655383]
[1750555343867,8.63599219,2285.2,2284.3,0.7611]
[1750555343868,34.37629852,2285.1,2284.5,4.37725885]
[1750555344094,30.0,2284.9,2284.5,7.73219743]
[1750555344278,30.0,2284.7,2284.5,3.35493858]
[1750555344485,7.86979219,2284.6,2284.3,4.37755262]
[1750555344675,7.86979219,2284.6,2284.3,7.7324912]
[1750555344894,8.69839219,2284.6,2284.4,4.37749977]
[1750555345080,8.6656,2284.6,2284.5,4.37732545]
[1750555345282,8.6656,2284.6,2284.3,4.3777087]
[1750555345610,0.03279219,2284.5,2284.1,4.37796732]
[1750555345806,7.832,2284.4,2284.1,4.37808267]
[1750555346010,7.832,2284.4,2284.3,4.37769212]
[1750555346171,10.104,2284.4,2284.3,4.37769212]
[1750555347088,10.104,2284.4,2284.3,4.3777087]
[1750555347491,10.104,2284.4,2284.2,4.37784262]
[1750555349217,10.104,2284.4,2284.3,4.3777087]
[1750555350783,0.7504,2284.9,2284.2,4.37788758]
[1750555351115,10.0,2284.7,2284.5,4.37714258]
[1750555351407,10.0,2284.7,2284.4,4.37744703]
[1750555351610,7.801,2284.6,2284.5,4.37732545]
[1750555352766,2.272,2284.9,2284.8,4.3767507]
[1750555353426,10.505,2285.3,2285.2,4.37598459]
[1750555353619,20.57,2285.3,2285.1,4.37610133]
[1750555353824,0.03279219,2285.2,2284.8,4.3767507]
[1750555353982,7.796,2285.1,2284.8,4.3767507]
[1750555354323,7.796,2285.1,2284.9,4.3765232]
[1750555354695,7.796,2285.1,2284.9,4.37653675]
[1750555355016,7.796,2285.1,2285.0,4.37636761]
[1750555355798,7.796,2285.1,2284.9,4.37648184]
[1750555356110,30.0,2284.9,2284.3,4.37759833]
[1750555356303,11.56937141,2285.0,2284.2,4.37785324]
[1750555356304,10.08879219,2284.8,2284.2,4.37785324]
[1750555356483,10.056,2284.8,2284.4,4.37737839]
[1750555356680,0.03279219,2284.7,2284.3,4.377666]
[1750555356983,0.03279219,2284.7,2284.2,4.3777904]
[1750555356984,7.788,2284.6,2283.9,0.766]
[1750555357188,7.788,2284.6,2283.6,3.35493858]
[1750555357189,10.7537,2284.4,2284.0,4.37815811]
[1750555357383,10.0,2284.1,2283.6,4.37902555]
[1750555357610,4.37804872,2284.2,2283.5,4.37911004]
[1750555357611,7.82279219,2284.0,2283.5,4.37911004]
[1750555358438,0.7537,2283.9,2283.2,4.12093858]
[1750555358615,0.7537,2283.9,2283.3,7.73438568]
[1750555358616,2.30479219,2283.8,2283.3,7.73438568]
[1750555358819,7.786,2283.7,2283.4,4.37939992]
[1750555359229,7.81879219,2283.7,2283.4,4.37939992]
[1750555359429,7.81879219,2283.7,2283.3,7.73454823]
[1750555359628,7.81879219,2283.7,2283.5,4.37923449]
[1750555359830,0.7537,2283.9,2283.6,4.37905062]
[1750555360033,10.054,2283.8,2283.7,4.37872999]
[1750555360556,10.054,2283.8,2283.6,4.37901222]
[1750555361547,10.054,2283.8,2283.3,3.35493858]
[1750555361940,10.054,2283.8,2283.6,4.37892949]
[1750555362244,0.03279219,2283.7,2283.2,3.35493858]
[1750555362449,0.03279219,2283.7,2283.3,4.37962597]
[1750555362650,30.0,2283.6,2283.3,4.3795122]
[1750555362843,7.79979219,2283.5,2283.3,4.3795122]
[1750555363059,7.79979219,2283.5,2283.3,7.73445078]
[1750555363239,7.79979219,2283.5,2283.4,4.37943417]
[1750555363240,7.767,2283.5,2283.4,4.37943417]
[1750555363418,2.272,2283.6,2283.5,4.37916713]
[1750555363755,2.272,2283.6,2283.4,4.37932116]
[1750555364449,2.272,2283.6,2283.5,4.37924239]
[1750555367266,2.273,2283.6,2283.5,4.37924239]
[1750555367842,2.273,2283.6,2283.5,7.73418097]
[1750555369075,2.273,2283.6,2283.5,8.48608097]
[1750555369572,10.514,2284.2,2284.1,4.37809202]
[1750555369887,20.532,2284.2,2283.9,4.37843583]
[1750555370034,20.532,2284.2,2283.3,7.745]
[1750555370035,40.0,2283.8,2283.2,0.7519]